bitfinex/quotes_SOLUSD_20250212
["timestamp","ask_amount","ask_price","bid_price","bid_amount"]
[1739378401464,16.54749861,190.61,190.57,0.063]
[1739378401668,16.54749861,190.65,190.58,16.54749861]
[1739378401874,16.54749861,190.65,190.57,0.063]
[1739378402055,2.622,190.69,190.57,0.063]
[1739378402056,13.66282853,190.68,190.57,0.063]
[1739378402951,16.54749861,190.63,190.57,0.063]
[1739378403485,16.54749861,190.64,190.59,20.0]
[1739378403679,16.54749861,190.66,190.59,36.54749861]
[1739378403882,19.16979861,190.67,190.6,16.54749861]
[1739378404058,16.54749861,190.65,190.59,36.54749861]
[1739378404254,16.54749861,190.66,190.59,36.54749861]
[1739378404582,16.54749861,190.65,190.59,36.54749861]
[1739378404762,16.54749861,190.66,190.6,16.54749861]
[1739378404961,16.54749861,190.69,190.63,16.54749861]
[1739378405283,16.54749861,190.69,190.62,6.1636]
[1739378405284,16.54749861,190.72,190.65,16.54749861]
[1739378405581,16.54749861,190.72,190.66,21.79239861]
[1739378405881,0.03,190.73,190.67,16.54749861]
[1739378406291,16.54749861,190.72,190.66,21.79239861]
[1739378406582,16.57749861,190.73,190.66,21.79239861]
[1739378406955,16.57749861,190.73,190.67,16.54749861]
[1739378407155,16.54749861,190.72,190.66,34.90469861]
[1739378407379,16.54749861,190.71,190.66,18.3572]
[1739378407584,0.03,190.73,190.66,18.3572]
[1739378407585,16.54749861,190.69,190.66,5.2449]
[1739378407759,16.54749861,190.67,190.64,5.2454]
[1739378407958,16.54749861,190.66,190.64,5.2454]
[1739378408164,16.54749861,190.65,190.64,5.2454]
[1739378408576,16.54749861,190.67,190.64,5.2454]
[1739378409089,16.54749861,190.67,190.63,5.2457]
[1739378409256,16.54749861,190.68,190.63,5.2457]
[1739378409670,16.54749861,190.69,190.63,21.79319861]
[1739378410080,16.54749861,190.7,190.64,16.54749861]
[1739378410489,16.54749861,190.69,190.63,21.79319861]
[1739378411789,16.54749861,190.69,190.63,34.90759861]
[1739378411981,0.03,190.73,190.68,16.54749861]
[1739378412185,0.03,190.73,190.69,16.54749861]
[1739378412473,0.03,190.73,190.68,16.54749861]
[1739378412672,0.03,190.73,190.69,16.54749861]
[1739378413169,0.03,190.73,190.68,16.54749861]
[1739378413374,0.03,190.73,190.65,1.10111542]
[1739378413596,0.03,190.73,190.71,5.2435]
[1739378414705,0.03,190.73,190.71,21.79099861]
[1739378415094,0.03,190.73,190.72,16.54749861]
[1739378415912,0.03,190.73,190.72,21.79069861]
[1739378417290,0.0001,190.73,190.72,23.14242871]
[1739378418386,0.0001,190.73,190.72,36.67976724]
[1739378418579,0.03,190.78,190.72,62.71800871]
[1739378418785,0.03,190.78,190.76,16.54749861]
[1739378419799,0.03,190.78,190.77,20.0]
[1739378419970,16.57749861,190.78,190.72,61.11529861]
[1739378420169,0.03,190.78,190.72,61.11529861]
[1739378420504,0.03,190.78,190.75,20.0]
[1739378420795,0.03,190.78,190.76,5.2421]
[1739378425283,0.03,190.78,190.77,20.0]
[1739378425483,0.03,190.78,190.77,36.54749861]
[1739378425904,0.03,190.78,190.77,20.0]
[1739378426604,0.03,190.78,190.76,5.2421]
[1739378427316,0.03,190.78,190.75,5.2424]
[1739378427814,0.03,190.78,190.72,0.063]
[1739378427815,16.54749861,190.76,190.72,0.063]
[1739378427985,16.54749861,190.75,190.72,0.063]
[1739378428183,16.57749861,190.78,190.72,0.063]
[1739378428398,16.57749861,190.78,190.72,16.61049861]
[1739378428601,16.57749861,190.78,190.72,0.063]
[1739378428893,16.54749861,190.77,190.72,5.3062]
[1739378430212,16.57749861,190.78,190.72,5.3062]
[1739378430810,0.03,190.78,190.72,16.61049861]
[1739378431419,0.03,190.78,190.73,16.54749861]
[1739378432212,16.54749861,190.77,190.72,0.063]
[1739378432415,16.54749861,190.73,190.72,0.063]
[1739378433515,2.6214,190.74,190.72,0.063]
[1739378433516,19.16889861,190.74,190.72,0.063]
[1739378434017,16.54749861,190.75,190.72,0.063]
[1739378434415,16.54749861,190.73,190.72,0.063]
[1739378435815,32.83182714,190.73,190.72,0.063]
[1739378436048,34.69090714,190.73,190.72,0.063]
[1739378436417,20.0,190.7,190.6,5.2465]
[1739378436729,16.54749861,190.64,190.6,5.2465]
[1739378437106,16.54749861,190.66,190.6,5.2465]
[1739378437535,16.54749861,190.66,190.59,16.54749861]
[1739378438205,16.54749861,190.65,190.58,16.54749861]
[1739378438408,16.54749861,190.64,190.58,16.54749861]
[1739378438725,16.54749861,190.64,190.59,5.2468]
[1739378439840,16.54749861,190.65,190.59,21.79429861]
[1739378440632,16.54749861,190.65,190.58,21.79459861]
[1739378440957,16.54749861,190.69,190.62,16.54749861]
[1739378441453,16.54749861,190.7,190.64,16.54749861]
[1739378441625,19.16919861,190.71,190.65,16.54749861]
[1739378441822,16.54749861,190.7,190.64,16.54749861]
[1739378442551,16.54749861,190.69,190.63,16.54749861]
[1739378443255,16.54749861,190.67,190.62,5.246]
[1739378443426,16.54749861,190.65,190.6,13.116]
[1739378443625,16.54749861,190.65,190.6,18.3625]
[1739378444048,16.54749861,190.66,190.6,34.90999861]
[1739378444244,16.54749861,190.69,190.63,16.54749861]
[1739378444547,16.54749861,190.69,190.62,16.54749861]
[1739378444754,16.54749861,190.65,190.6,18.3625]
[1739378444953,16.54749861,190.66,190.6,34.90999861]
[1739378445347,16.54749861,190.67,190.6,34.90999861]
[1739378445747,16.54749861,190.66,190.6,34.90999861]
[1739378446148,16.54749861,190.66,190.6,34.97299861]
[1739378446823,16.54749861,190.64,190.6,5.3095]
[1739378447027,16.54749861,190.63,190.6,5.3095]
[1739378447229,16.54749861,190.62,190.6,5.3095]
[1739378447431,16.54749861,190.63,190.6,5.3095]
[1739378448159,16.54749861,190.63,190.6,0.063]
[1739378448349,16.54749861,190.64,190.6,0.063]
[1739378448662,16.54749861,190.63,190.6,0.063]
[1739378448863,16.54749861,190.68,190.62,16.54749861]
[1739378449362,13.53733853,190.71,190.61,20.0]
[1739378449947,16.15923853,190.71,190.62,5.246]
[1739378450148,16.54749861,190.68,190.62,21.79349861]
[1739378450547,16.54749861,190.69,190.63,16.54749861]
[1739378450742,16.54749861,190.68,190.62,5.246]
[1739378451137,16.54749861,190.66,190.62,5.246]
[1739378451640,16.54749861,190.63,190.6,0.063]
[1739378451965,16.54749861,190.63,190.6,5.3095]
[1739378452265,16.54749861,190.62,190.6,5.3095]
[1739378452760,16.54749861,190.62,190.6,0.063]
[1739378453065,16.54749861,190.61,190.6,0.063]
[1739378458076,16.54749861,190.62,190.6,0.063]
[1739378458454,16.15993853,190.65,190.6,0.063]
[1739378458455,16.54749861,190.61,190.6,0.063]
[1739378460975,16.54749861,190.64,190.6,0.063]
[1739378461173,16.54749861,190.66,190.6,16.61049861]
[1739378461483,16.54749861,190.71,190.64,16.54749861]
[1739378461779,16.54749861,190.71,190.65,16.54749861]
[1739378461978,16.57749861,190.72,190.66,16.54749861]
[1739378462487,16.54749861,190.71,190.65,16.54749861]
[1739378462677,0.03,190.72,190.64,36.54749861]
[1739378462678,16.54749861,190.7,190.64,36.54749861]
[1739378462882,16.54749861,190.67,190.64,20.0]
[1739378463179,16.54749861,190.67,190.64,5.2452]
[1739378463376,16.54749861,190.66,190.64,5.2452]
[1739378463568,16.54749861,190.65,190.62,5.2458]
[1739378463772,16.54749861,190.66,190.62,5.2458]
[1739378464356,16.54749861,190.67,190.62,5.2458]
[1739378464655,16.54749861,190.66,190.62,5.2458]
[1739378464888,16.54749861,190.63,190.6,0.063]
[1739378465182,16.54749861,190.61,190.6,0.063]
[1739378466470,16.54749861,190.62,190.6,0.063]
[1739378466883,16.54749861,190.61,190.6,0.063]
[1739378467184,16.54749861,190.63,190.6,0.063]
[1739378467374,16.54749861,190.66,190.6,16.61049861]
[1739378467683,0.03,190.72,190.6,51.72849]
[1739378467857,0.03,190.72,190.63,20.0]
[1739378468781,26.45778678,190.71,190.64,26.45778678]
[1739378469084,26.45778678,190.71,190.65,5.2452]
[1739378469857,26.48778678,190.72,190.65,31.70298678]
[1739378470471,0.03,190.72,190.66,26.45778678]
[1739378470670,26.48778678,190.72,190.66,26.45778678]
[1739378470876,0.03,190.72,190.69,26.45778678]
[1739378471190,0.03,190.72,190.68,26.45778678]
[1739378471569,0.03,190.72,190.67,26.45778678]
[1739378471768,26.48778678,190.72,190.66,26.45778678]
[1739378472068,0.03,190.72,190.67,26.45778678]
[1739378472469,0.03,190.72,190.68,5.2443]
[1739378472663,26.48778678,190.72,190.68,5.2443]
[1739378473362,26.45778678,190.69,190.65,0.063]
[1739378473563,26.45778678,190.67,190.65,0.063]
[1739378473781,26.45778678,190.68,190.65,0.063]
[1739378474202,26.45778678,190.66,190.65,0.063]
[1739378474675,26.45778678,190.67,190.65,0.063]
[1739378475195,26.45778678,190.66,190.65,0.063]
[1739378475988,42.61752531,190.66,190.65,0.063]
[1739378476789,29.08018678,190.66,190.65,0.063]
[1739378477594,26.45778678,190.69,190.65,0.063]
[1739378477771,26.48778678,190.72,190.65,26.52078678]
[1739378478493,0.03,190.72,190.66,26.45778678]
[1739378478971,0.03,190.72,190.67,5.2446]
[1739378479367,26.48778678,190.72,190.67,5.2446]
[1739378479572,26.45778678,190.71,190.67,5.2446]
[1739378479991,26.45778678,190.71,190.65,5.3082]
[1739378480189,26.45778678,190.71,190.65,31.76598678]
[1739378481394,26.45778678,190.71,190.65,5.3082]
[1739378481598,26.45778678,190.68,190.65,0.063]
[1739378481897,26.45778678,190.7,190.65,5.3081]
[1739378482291,26.45778678,190.71,190.65,31.76588678]
[1739378482497,0.03,190.72,190.68,26.45778678]
[1739378482796,0.03,190.72,190.69,26.45778678]
[1739378482971,26.48778678,190.72,190.66,32.85138678]
[1739378483177,26.48778678,190.72,190.66,6.3936]
[1739378483376,26.45778678,190.71,190.65,6.8987]
[1739378483585,26.45778678,190.71,190.65,5.3081]
[1739378483970,26.45778678,190.71,190.65,31.76588678]
[1739378484173,26.45778678,190.7,190.65,5.3081]
[1739378484903,26.45778678,190.68,190.65,5.3081]
[1739378485405,26.45778678,190.68,190.65,0.063]
[1739378485604,26.45778678,190.66,190.65,0.063]
[1739378486707,26.45778678,190.67,190.65,0.063]
[1739378487097,26.45778678,190.68,190.65,0.063]
[1739378487283,26.45778678,190.69,190.65,0.063]
[1739378487814,26.48778678,190.72,190.65,26.52078678]
[1739378487976,0.03,190.72,190.68,26.45778678]
[1739378488308,0.03,190.72,190.7,26.45778678]
[1739378488903,0.03,190.72,190.71,26.45778678]
[1739378489601,0.03,190.72,190.68,26.45778678]
[1739378489802,0.03,190.72,190.68,31.70208678]
[1739378490007,0.03,190.72,190.71,58.24876678]
[1739378490191,0.03,190.78,190.71,71.91159531]
[1739378490505,0.03,190.78,190.74,51.54]
[1739378491210,0.03,190.78,190.75,59.47482266]
[1739378491788,0.03,190.78,190.75,59.34933266]
[1739378492002,0.03,190.78,190.75,31.70018678]
[1739378492506,0.03,190.78,190.75,33.05172647]
[1739378492809,0.03,190.78,190.75,31.95116678]
[1739378493194,0.03,190.78,190.75,31.70018678]
[1739378495004,0.03,190.78,190.75,32.07665678]
[1739378496001,0.03,190.78,190.75,33.17709293]
[1739378496513,0.03,190.78,190.75,31.70018678]
[1739378496910,0.03,190.78,190.75,32.80072018]
[1739378497321,0.03,190.78,190.75,31.70018678]
[1739378500624,0.03,190.78,190.77,25.49288]
[1739378500797,0.03,190.78,190.77,53.05101351]
[1739378501316,0.03,190.78,190.77,51.95066678]
[1739378501734,0.063,190.84,190.79,0.12549]
[1739378502021,0.063,190.84,190.83,26.45778678]
[1739378502397,0.0001,190.84,190.83,27.99668678]
[1739378502613,26.45778678,191.01,190.9,7.3435]
[1739378502791,0.03,190.96,190.92,1.0]
[1739378502991,7.995422,191.09,190.95,2.0]
[1739378503190,7.995422,191.09,191.04,26.45778678]
[1739378503422,7.995422,191.09,191.03,26.45778678]
[1739378503592,34.45320878,191.09,191.02,26.45778678]
[1739378503796,34.45320878,191.09,191.03,5.2347]
[1739378503994,26.45778678,191.04,190.95,5.2369]
[1739378504205,0.25098,191.03,190.95,5.2369]
[1739378504603,26.45778678,190.98,190.95,5.2369]
[1739378504795,13.53733853,190.98,190.92,13.64578387]
[1739378504995,13.53733853,190.98,190.91,5.2378]
[1739378505196,7.7612,191.0,190.91,5.2378]
[1739378505422,8.763,191.07,190.91,5.2378]
[1739378505596,7.763,191.07,190.91,5.2378]
[1739378505798,26.45778678,191.06,190.99,26.45778678]
[1739378506201,39.86963531,191.05,190.98,26.45778678]
[1739378506402,7.763,191.07,191.02,26.45778678]
[1739378506603,26.45778678,191.09,191.03,26.45778678]
[1739378506928,13.41184853,191.07,191.02,26.45778678]
[1739378507418,39.86963531,191.07,191.0,26.45778678]
[1739378507810,13.41184853,191.07,191.01,31.69308678]
[1739378508309,13.41184853,191.07,191.02,26.45778678]
[1739378509025,0.03,191.09,191.06,26.45778678]
[1739378509207,0.03,191.09,191.08,26.45778678]
[1739378509722,32.85288678,191.18,191.08,26.45778678]
[1739378509723,6.3951,191.18,191.08,26.45778678]
[1739378510032,1.6445,191.19,191.06,0.25098]
[1739378510033,1.6445,191.19,191.07,20.0]
[1739378510198,1.6445,191.19,191.14,26.45778678]
[1739378510402,13.41184853,191.22,191.14,26.45778678]
[1739378510625,26.45778678,191.2,191.13,26.45778678]
[1739378510919,26.45778678,191.2,191.13,31.68958678]
[1739378511103,26.45778678,191.2,191.13,26.45778678]
[1739378511300,26.45778678,191.22,191.16,26.45778678]
[1739378511522,26.45778678,191.24,191.18,26.45778678]
[1739378511726,26.45778678,191.21,191.15,26.45778678]
[1739378512029,26.45778678,191.23,191.16,26.45778678]
[1739378512200,26.45778678,191.24,191.18,26.45778678]
[1739378512394,26.45778678,191.23,191.17,26.45778678]
[1739378512823,26.45778678,191.24,191.17,26.45778678]
[1739378513398,26.45778678,191.24,191.18,26.45778678]
[1739378513802,26.45778678,191.19,191.12,26.45778678]
[1739378514107,26.45778678,191.13,191.06,26.45778678]
[1739378514306,6.4396,191.18,191.07,26.45778678]
[1739378514523,6.4396,191.18,191.01,1.09893705]
[1739378514524,26.45778678,191.14,191.03,20.0]
[1739378514726,26.45778678,191.14,191.03,21.0988576]
[1739378515026,26.45778678,191.14,191.07,26.45778678]
[1739378515723,32.89738678,191.18,191.11,26.45778678]
[1739378515903,32.89738678,191.18,191.06,6.33259934]
[1739378515904,32.89738678,191.18,191.12,26.45778678]
[1739378516103,26.45778678,191.16,191.1,26.45778678]
[1739378516299,26.45778678,191.15,191.09,26.45778678]
[1739378516512,26.45778678,191.14,191.08,26.45778678]
[1739378516905,13.41184853,191.17,191.1,26.45778678]
[1739378516906,26.45778678,191.17,191.1,26.45778678]
[1739378518201,26.45778678,191.14,191.08,20.0]
[1739378518426,26.45778678,191.15,191.09,26.45778678]
[1739378519618,0.03,191.14,191.11,26.45778678]
[1739378519824,0.03,191.14,191.08,5.2332]
[1739378519825,0.03,191.14,191.12,26.45778678]
[1739378520138,0.03,191.14,191.11,26.45778678]
[1739378520314,26.45778678,191.13,191.08,5.2332]
[1739378520818,0.03,191.14,191.09,26.45778678]
[1739378521207,0.03,191.14,191.1,26.45778678]
[1739378521631,0.03,191.14,191.13,26.45778678]
[1739378522031,0.03,191.14,191.12,26.45778678]
[1739378522208,0.03,191.14,191.11,26.45778678]
[1739378522822,0.03,191.14,191.08,18.3169]
[1739378522823,0.03,191.14,191.1,26.45778678]
[1739378523228,0.03,191.14,191.11,26.45778678]
[1739378523534,0.03,191.14,191.12,26.45778678]
[1739378523733,0.03,191.14,191.1,26.45778678]
[1739378523938,26.48778678,191.14,191.1,20.0]
[1739378524343,26.48778678,191.14,191.08,26.45778678]
[1739378524644,0.03,191.14,191.1,26.45778678]
[1739378524827,0.03,191.14,191.13,26.45778678]
[1739378525640,0.03,191.14,191.13,31.68978678]
[1739378526018,0.03,191.14,191.13,5.232]
[1739378527237,26.48778678,191.14,191.1,5.2328]
[1739378527452,26.45778678,191.11,191.1,5.2328]
[1739378527748,0.03,191.14,191.1,5.2328]
[1739378527749,26.45778678,191.13,191.1,5.2328]
[1739378528426,26.45778678,191.11,191.07,5.2336]
[1739378528815,26.45778678,191.12,191.07,5.2336]
[1739378529418,26.45778678,191.1,191.04,26.45778678]
[1739378529619,26.45778678,191.13,191.06,26.45778678]
[1739378530239,26.45778678,191.12,191.05,46.45778678]
[1739378530414,26.45778678,191.13,191.06,26.45778678]
[1739378530618,26.45778678,191.13,191.07,26.45778678]
[1739378530819,0.03,191.14,191.1,26.45778678]
[1739378531248,0.03,191.14,191.11,26.45778678]
[1739378531446,0.03,191.14,191.13,26.45778678]
[1739378532032,0.03,191.14,191.12,26.45778678]
[1739378532240,0.03,191.14,191.13,26.45778678]
[1739378532644,0.03,191.14,191.13,31.68978678]
[1739378535131,0.03,191.14,191.13,5.232]
[1739378536246,0.03,191.14,191.13,31.68978678]
[1739378536935,1.5429,191.24,191.16,20.0]
[1739378537134,26.45778678,191.28,191.21,26.45778678]
[1739378537343,26.70876678,191.29,191.22,26.45778678]
[1739378537534,26.45778678,191.31,191.24,26.45778678]
[1739378537735,26.45778678,191.3,191.23,26.45778678]
[1739378538338,26.45778678,191.27,191.23,20.0]
[1739378538640,26.45778678,191.27,191.24,5.229]
[1739378538957,26.45778678,191.28,191.21,44.76218678]
[1739378539127,26.45778678,191.27,191.21,5.2298]
[1739378539334,26.45778678,191.28,191.21,31.68758678]
[1739378539741,26.45778678,191.28,191.24,20.0]
[1739378540447,26.45778678,191.26,191.22,5.2295]
[1739378540653,26.45778678,191.28,191.22,5.2295]
[1739378540851,26.45778678,191.28,191.22,31.68728678]
[1739378541046,2.6137,191.3,191.23,26.45778678]
[1739378541047,26.45778678,191.3,191.23,26.45778678]
[1739378541249,26.45778678,191.32,191.26,26.45778678]
[1739378541755,1.6629,191.33,191.28,26.45778678]
[1739378541930,0.03,191.34,191.28,26.45778678]
[1739378542338,26.48778678,191.34,191.28,26.45778678]
[1739378543151,0.03,191.34,191.26,31.54]
[1739378543363,0.03,191.34,191.31,26.45778678]
[1739378543750,0.03,191.34,191.32,26.45778678]
[1739378544262,0.03,191.34,191.33,63.22428678]
[1739378544454,0.03,191.4,191.36,20.0]
[1739378544664,0.03,191.4,191.38,26.45778678]
[1739378545047,0.03,191.4,191.37,26.45778678]
[1739378545561,0.03,191.4,191.35,26.45778678]
[1739378545761,0.03,191.4,191.38,20.0]
[1739378545958,26.48778678,191.4,191.33,31.68428678]
[1739378546158,26.45778678,191.39,191.33,31.68428678]
[1739378546464,26.48778678,191.4,191.36,20.0]
[1739378547368,0.03,191.4,191.38,26.45778678]
[1739378547535,0.03,191.4,191.39,46.45778678]
[1739378548548,0.03,191.4,191.39,51.68268678]
[1739378550273,26.48778678,191.4,191.32,26.45778678]
[1739378550573,26.45778678,191.37,191.34,20.0]
[1739378550748,26.45778678,191.38,191.34,20.0]
[1739378551264,0.03,191.4,191.34,20.0]
[1739378551265,26.45778678,191.37,191.34,20.0]
[1739378551968,26.45778678,191.35,191.28,5.2279]
[1739378552154,26.45778678,191.34,191.28,31.68568678]
[1739378552350,26.45778678,191.32,191.28,5.2279]
[1739378553270,26.45778678,191.33,191.28,5.2279]
[1739378553461,29.07058678,191.36,191.29,26.45778678]
[1739378553657,29.07058678,191.36,191.3,26.45778678]
[1739378553856,26.45778678,191.36,191.3,26.45778678]
[1739378554249,26.45778678,191.35,191.29,31.68518678]
[1739378554747,26.45778678,191.36,191.3,26.45778678]
[1739378555963,26.45778678,191.36,191.31,5.2271]
[1739378556150,26.45778678,191.39,191.33,26.45778678]
[1739378556473,0.03,191.4,191.35,26.45778678]
[1739378557057,0.03,191.4,191.39,26.45778678]
[1739378557539,0.03,191.4,191.38,26.45778678]
[1739378557970,0.03,191.4,191.39,31.68268678]
[1739378558847,0.03,191.4,191.39,5.2249]
[1739378559947,0.03,191.4,191.36,31.68348678]
[1739378560350,0.03,191.4,191.37,26.45778678]
[1739378560550,0.03,191.4,191.36,31.68348678]
[1739378560779,0.03,191.4,191.37,26.45778678]
[1739378562085,0.03,191.4,191.38,5.2252]
[1739378562289,26.45778678,191.39,191.31,39.52488678]
[1739378562472,26.45778678,191.35,191.29,5.2276]
[1739378562789,26.45778678,191.35,191.32,20.0]
[1739378563294,26.45778678,191.36,191.33,20.0]
[1739378563458,26.45778678,191.36,191.31,5.2271]
[1739378563676,26.45778678,191.33,191.31,5.2271]
[1739378564084,26.45778678,191.32,191.31,5.2271]
[1739378564471,26.45778678,191.32,191.29,5.2276]
[1739378565473,26.45778678,191.32,191.29,20.0]
[1739378565674,26.45778678,191.32,191.28,0.063]
[1739378565873,26.45778678,191.34,191.28,26.52078678]
[1739378566076,26.45778678,191.34,191.3,20.0]
[1739378566482,26.45778678,191.34,191.28,26.52078678]
[1739378566690,26.45778678,191.33,191.28,0.063]
[1739378566888,26.45778678,191.33,191.3,20.0]
[1739378567267,26.45778678,191.32,191.28,0.063]
[1739378567468,26.45778678,191.31,191.28,0.063]
[1739378567969,26.45778678,191.3,191.28,0.063]
[1739378568483,26.45778678,191.32,191.28,20.063]
[1739378568881,26.45778678,191.31,191.28,0.063]
[1739378569090,26.45778678,191.3,191.28,0.063]
[1739378569464,26.45778678,191.31,191.28,0.063]
[1739378571212,26.45778678,191.3,191.28,0.063]
[1739378572205,26.45778678,191.31,191.28,0.063]
[1739378572574,26.45778678,191.29,191.28,0.063]
[1739378573399,26.45778678,191.31,191.28,0.063]
[1739378573603,26.45778678,191.32,191.28,0.063]
[1739378573806,26.45778678,191.31,191.28,0.063]
[1739378574303,26.45778678,191.33,191.28,0.063]
[1739378574496,26.45778678,191.31,191.28,0.063]
[1739378574698,26.45778678,191.3,191.28,0.063]
[1739378575000,26.45778678,191.31,191.28,0.063]
[1739378575202,26.45778678,191.3,191.28,0.063]
[1739378575578,26.45778678,191.31,191.28,0.063]
[1739378577379,26.45778678,191.32,191.28,0.063]
[1739378577585,26.45778678,191.33,191.28,0.063]
[1739378577782,26.45778678,191.32,191.28,0.063]
[1739378577995,26.45778678,191.31,191.28,0.063]
[1739378578200,26.45778678,191.29,191.28,0.063]
[1739378579683,26.45778678,191.3,191.28,0.063]
[1739378580394,26.45778678,191.32,191.28,0.063]
[1739378580904,26.45778678,191.35,191.29,26.45778678]
[1739378581098,26.45778678,191.37,191.31,26.45778678]
[1739378581301,26.45778678,191.37,191.3,26.45778678]
[1739378581501,26.45778678,191.36,191.29,26.45778678]
[1739378581693,26.45778678,191.36,191.3,26.45778678]
[1739378581886,0.03,191.34,191.3,26.45778678]
[1739378582406,0.03,191.34,191.31,5.2271]
[1739378582592,0.03,191.34,191.31,31.68488678]
[1739378582907,0.03,191.34,191.31,5.2271]
[1739378583905,0.03,191.34,191.31,26.45778678]
[1739378584985,0.03,191.34,191.32,5.2268]
[1739378586316,26.45778678,191.33,191.28,0.063]
[1739378586630,0.03,191.34,191.3,26.45778678]
[1739378586992,0.03,191.34,191.31,26.45778678]
[1739378587520,0.03,191.34,191.31,20.0]
[1739378588393,0.03,191.34,191.3,26.45778678]
[1739378589212,0.03,191.34,191.31,5.2271]
[1739378589421,26.48778678,191.34,191.31,5.2271]
[1739378589604,16.45271276,191.34,191.31,5.2271]
[1739378589796,0.03,191.34,191.31,5.2271]
[1739378590122,16.42271276,191.33,191.28,13.1328]
[1739378590292,16.42271276,191.32,191.29,5.2276]
[1739378590615,16.42271276,191.33,191.29,5.2276]
[1739378591892,16.42271276,191.32,191.28,0.063]
[1739378592308,16.42271276,191.33,191.28,0.063]
[1739378594192,16.42271276,191.32,191.28,0.063]
[1739378595419,16.45271276,191.34,191.28,16.48571276]
[1739378595887,0.03,191.34,191.29,16.42271276]
[1739378596091,0.03,191.34,191.33,16.42271276]
[1739378597412,0.03,191.34,191.33,21.64921276]
[1739378599098,0.03,191.34,191.33,53.06921276]
[1739378599307,0.03,191.4,191.36,20.0]
[1739378599628,0.03,191.4,191.39,16.42271276]
[1739378600824,0.0001,191.4,191.39,48.93957699]
[1739378601335,0.0001,191.4,191.39,54.16447699]
[1739378603127,0.0001,191.4,191.39,32.55777211]
[1739378603329,0.0001,191.4,191.39,78.65245309]
[1739378603626,0.03,191.51,191.43,20.0]
[1739378603818,0.03,191.51,191.47,26.23605245]
[1739378604014,0.03,191.51,191.46,26.23605245]
[1739378604208,0.03,191.51,191.47,26.23605245]
[1739378604411,0.03,191.51,191.46,26.23605245]
[1739378604609,0.03,191.51,191.47,26.23605245]
[1739378604803,0.03,191.51,191.46,26.23605245]
[1739378605027,0.03,191.51,191.47,26.23605245]
[1739378605233,26.23605245,191.5,191.44,26.23605245]
[1739378605533,26.23605245,191.46,191.41,5.2243]
[1739378605930,26.23605245,191.43,191.39,5.2246]
[1739378606118,26.23605245,191.42,191.39,5.2246]
[1739378606315,26.23605245,191.43,191.39,5.2246]
[1739378606721,26.23605245,191.42,191.39,5.2246]
[1739378606933,26.23605245,191.41,191.39,5.2246]
[1739378607320,26.23605245,191.41,191.36,5.2257]
[1739378607503,26.23605245,191.39,191.36,5.2257]
[1739378607940,26.23605245,191.38,191.36,5.2257]
[1739378608116,26.23605245,191.39,191.36,5.2257]
[1739378608318,26.23605245,191.39,191.34,5.2262]
[1739378609231,26.23605245,191.38,191.33,0.063]
[1739378609404,26.23605245,191.4,191.33,46.29905245]
[1739378610242,26.23605245,191.42,191.36,26.23605245]
[1739378610425,26.23605245,191.43,191.37,26.23605245]
[1739378610827,26.23605245,191.42,191.35,26.23605245]
[1739378611136,26.23605245,191.41,191.35,26.23605245]
[1739378611344,26.23605245,191.43,191.37,26.23605245]
[1739378611634,26.23605245,191.45,191.39,26.23605245]
[1739378611842,27.80075245,191.49,191.38,20.0]
[1739378612015,0.03,191.51,191.38,51.42]
[1739378612214,26.26605245,191.51,191.44,26.23605245]
[1739378612415,26.23605245,191.49,191.43,26.23605245]
[1739378612836,26.23605245,191.5,191.44,26.23605245]
[1739378613238,26.23605245,191.5,191.43,26.23605245]
[1739378613440,0.03,191.51,191.44,5.2235]
[1739378613441,26.23605245,191.48,191.44,5.2235]
[1739378613639,0.03,191.51,191.44,5.2235]
[1739378613640,26.23605245,191.46,191.44,5.2235]
[1739378614015,26.23605245,191.45,191.4,5.2246]
[1739378614520,26.23605245,191.46,191.4,31.46065245]
[1739378614721,26.23605245,191.47,191.41,26.23605245]
[1739378614923,0.03,191.51,191.43,26.23605245]
[1739378615123,26.23605245,191.49,191.43,26.23605245]